bitfinex/quotes_SOLUSD_20251208
["timestamp","ask_amount","ask_price","bid_price","bid_amount"]
[1765168399614,10.0493321,135.26,135.18,16.968864]
[1765168399615,2.65616339,135.24,135.18,16.968864]
[1765168400088,3.35616339,135.24,135.18,16.308864]
[1765168400287,2.65616339,135.22,135.18,16.308864]
[1765168400715,2.65616339,135.2,135.16,0.66]
[1765168400895,0.7,135.21,135.16,0.66]
[1765168401199,2.65616339,135.18,135.13,0.72]
[1765168401516,7.39809129,135.17,135.13,0.72]
[1765168401903,2.65616339,135.16,135.13,0.72]
[1765168402203,10.05382487,135.18,135.13,0.72]
[1765168402400,10.05382487,135.18,135.13,8.12019868]
[1765168402601,2.65616339,135.18,135.13,8.12019868]
[1765168402903,0.7,135.2,135.14,0.72]
[1765168403088,2.65616339,135.19,135.14,0.72]
[1765168403284,0.7,135.2,135.14,0.72]
[1765168403285,2.65616339,135.18,135.14,0.72]
[1765168403490,2.65616339,135.17,135.12,31.92964049]
[1765168403697,2.65616339,135.16,135.12,25.248864]
[1765168403930,10.05333636,135.19,135.13,0.72]
[1765168404132,10.05323455,135.19,135.14,7.39946035]
[1765168404309,10.05166553,135.22,135.15,10.87616339]
[1765168404509,3.35616339,135.23,135.16,11.46610831]
[1765168404717,3.35616339,135.23,135.16,3.37616339]
[1765168404927,7.39440048,135.24,135.15,24.528864]
[1765168404928,2.65616339,135.2,135.17,0.72]
[1765168405132,2.65616339,135.21,135.17,0.72]
[1765168405338,3.35616339,135.22,135.17,0.72]
[1765168405502,3.35616339,135.22,135.18,7.39754401]
[1765168405900,3.35616339,135.21,135.16,0.72]
[1765168406210,2.65616339,135.21,135.16,0.72]
[1765168406829,3.35616339,135.21,135.16,0.72]
[1765168407029,2.65616339,135.2,135.16,0.72]
[1765168407414,2.65616339,135.2,135.16,8.11845659]
[1765168407913,2.65616339,135.22,135.17,0.72]
[1765168408120,10.0505492,135.24,135.18,8.22]
[1765168408317,2.65616339,135.23,135.18,8.22]
[1765168408522,2.65616339,135.23,135.19,0.72]
[1765168408822,10.05001827,135.25,135.19,0.72]
[1765168409136,2.65616339,135.24,135.19,0.72]
[1765168409518,10.75076281,135.24,135.19,8.11690177]
[1765168409721,8.09459942,135.24,135.19,8.11690177]
[1765168409910,10.05076281,135.24,135.2,0.72]
[1765168410226,10.05004402,135.25,135.2,0.72]
[1765168410437,2.65616339,135.24,135.2,0.72]
[1765168410626,3.35616339,135.24,135.2,0.72]
[1765168411216,0.7,135.24,135.2,8.1160889]
[1765168411615,3.35616339,135.24,135.19,7.3969408]
[1765168411944,2.65616339,135.23,135.19,7.3969408]
[1765168412147,0.7,135.23,135.19,8.1169408]
[1765168412515,3.35616339,135.23,135.18,16.308864]
[1765168412746,2.65616339,135.22,135.17,8.94]
[1765168413153,10.05178811,135.22,135.18,0.72]
[1765168413318,10.75178811,135.22,135.18,0.72]
[1765168414464,10.05178811,135.22,135.17,15.61796489]
[1765168414757,3.35616339,135.21,135.17,8.22]
[1765168414917,2.65616339,135.2,135.16,17.028864]
[1765168415121,3.35616339,135.2,135.16,17.028864]
[1765168415330,2.65616339,135.18,135.13,0.72]
[1765168415523,0.7,135.19,135.13,0.72]
[1765168415741,2.65616339,135.17,135.13,8.12016018]
[1765168415924,2.65616339,135.16,135.13,0.72]
[1765168416337,3.35616339,135.17,135.13,8.12019471]
[1765168416749,6.30997116,135.17,135.13,7.40019471]
[1765168416921,6.30997116,135.17,135.13,8.12019471]
[1765168417116,7.00997116,135.17,135.13,8.12019471]
[1765168417345,6.30997116,135.16,135.13,8.12019471]
[1765168417555,26.71197689,135.2,135.13,7.40019471]
[1765168417727,6.30997116,135.18,135.14,0.72]
[1765168418121,7.00997116,135.18,135.14,0.72]
[1765168418321,6.30997116,135.2,135.14,0.72]
[1765168418543,6.30997116,135.21,135.15,25.028864]
[1765168418745,7.39610444,135.21,135.16,7.39863865]
[1765168418923,6.30997116,135.2,135.16,8.11863865]
[1765168419128,6.30997116,135.2,135.17,0.72]
[1765168419620,13.7060756,135.21,135.17,8.11796602]
[1765168419815,6.30997116,135.21,135.17,8.11796602]
[1765168420049,6.30997116,135.22,135.18,0.72]
[1765168420435,7.00997116,135.22,135.18,0.72]
[1765168420836,10.580786,135.22,135.18,0.72]
[1765168421352,17.97627095,135.22,135.18,8.11735321]
[1765168421758,8.09548495,135.22,135.18,8.11735321]
[1765168422251,7.39548495,135.22,135.19,0.72]
[1765168422547,9.880786,135.2,135.16,0.72]
[1765168422852,0.7,135.21,135.15,23.70788485]
[1765168422853,9.880786,135.19,135.15,23.70788485]
[1765168423160,9.880786,135.18,135.14,16.33950096]
[1765168423547,10.580786,135.18,135.14,16.33950096]
[1765168424360,0.7,135.18,135.14,16.33950096]
[1765168425024,17.27809464,135.19,135.15,8.11916205]
[1765168425221,18.48838929,135.22,135.16,9.880786]
[1765168425222,9.880786,135.22,135.16,9.880786]
[1765168425529,9.880786,135.22,135.17,0.72]
[1765168425729,10.580786,135.22,135.17,0.72]
[1765168425924,0.7,135.22,135.17,0.72]
[1765168426125,9.880786,135.2,135.15,7.39916205]
[1765168426328,9.880786,135.19,135.14,7.3995538]
[1765168426737,9.880786,135.19,135.13,32.64895914]
[1765168426738,0.7,135.18,135.13,32.64895914]
[1765168426936,10.580786,135.18,135.13,32.64895914]
[1765168427156,17.97845487,135.18,135.13,32.64895914]
[1765168427352,10.580786,135.17,135.13,8.22]
[1765168427856,7.39766887,135.18,135.13,8.22]
[1765168427857,10.580786,135.16,135.13,8.22]
[1765168428058,0.7,135.16,135.13,8.22]
[1765168428638,10.580786,135.16,135.13,8.22]
[1765168428844,10.580786,135.16,135.11,8.12131014]
[1765168429143,10.580786,135.16,135.12,8.12078286]
[1765168430634,17.97952811,135.16,135.12,8.12078286]
[1765168431256,17.27952811,135.16,135.12,8.12078286]
[1765168431457,17.99952811,135.16,135.12,8.12078286]
[1765168432143,0.72,135.15,135.11,7.40137665]
[1765168432348,0.72,135.15,135.07,22.2213992]
[1765168432349,9.880786,135.13,135.08,8.08289261]
[1765168432534,8.1191907,135.15,135.05,28.39196411]
[1765168432535,9.880786,135.11,135.05,28.39196411]
[1765168432735,9.880786,135.11,135.06,16.30374991]
[1765168432939,10.600786,135.11,135.06,16.30374991]
[1765168433136,10.600786,135.11,135.07,0.68]
[1765168433351,10.600786,135.11,135.07,8.08356756]
[1765168433763,25.89715592,135.15,135.06,7.40400562]
[1765168433764,10.600786,135.1,135.06,7.40400562]
[1765168434434,18.00274203,135.1,135.06,8.08400562]
[1765168435036,8.12195603,135.1,135.06,8.08400562]
[1765168435853,17.28274203,135.1,135.06,8.08400562]
[1765168436051,18.00274203,135.1,135.06,8.08400562]
[1765168437738,10.600786,135.1,135.06,8.08400562]
[1765168437940,0.68,135.14,135.08,9.880786]
[1765168438134,115.360786,135.14,135.08,18.100786]
[1765168438336,105.48,135.14,135.09,10.580786]
[1765168438739,105.48,135.14,135.1,0.7]
[1765168439134,112.87984103,135.14,135.1,0.7]
[1765168440071,10.560786,135.16,135.1,17.98225455]
[1765168440247,9.880786,135.15,135.1,26.6062798]
[1765168440446,9.880786,135.15,135.11,0.7]
[1765168440756,10.560786,135.17,135.11,18.800786]
[1765168441146,10.560786,135.17,135.12,0.7]
[1765168441551,25.11880892,135.22,135.14,26.18965]
[1765168441552,19.16856033,135.22,135.14,26.18965]
[1765168441753,10.560786,135.22,135.16,9.880786]
[1765168441959,17.95620326,135.22,135.17,7.39809129]
[1765168442143,17.27620326,135.22,135.17,8.09809129]
[1765168442343,7.39541726,135.22,135.18,0.7]
[1765168442545,0.68,135.21,135.17,8.09809129]
[1765168442974,17.95681537,135.21,135.16,7.39851284]
[1765168443149,17.95681537,135.21,135.18,0.5]
[1765168443466,0.68,135.2,135.18,0.5]
[1765168443653,9.880786,135.19,135.18,0.5]
[1765168443853,9.880786,135.19,135.14,8.22]
[1765168444061,10.560786,135.18,135.14,8.22]
[1765168444367,0.68,135.18,135.14,16.31966396]
[1765168444760,9.880786,135.17,135.14,8.22]
[1765168445073,17.27920376,135.17,135.12,7.4007783]
[1765168445272,17.95920376,135.17,135.12,7.4007783]
[1765168445572,17.27849886,135.18,135.13,0.7]
[1765168445871,17.95849886,135.18,135.13,0.7]
[1765168446074,0.68,135.17,135.13,0.7]
[1765168446272,10.560786,135.17,135.13,0.7]
[1765168446647,0.68,135.16,135.12,7.4007783]
[1765168446858,10.560786,135.16,135.12,7.4007783]
[1765168447274,17.95948345,135.16,135.12,7.4007783]
[1765168447448,17.2789401,135.17,135.13,0.7]
[1765168447652,7.3981541,135.17,135.13,0.7]
[1765168447868,8.0781541,135.17,135.13,0.7]
[1765168448067,0.68,135.16,135.13,0.7]
[1765168448374,8.0781541,135.17,135.14,0.5]
[1765168449659,17.27849034,135.18,135.14,1.2]
[1765168449957,17.95849034,135.18,135.14,1.2]
[1765168450157,9.880786,135.16,135.14,0.5]
[1765168450548,0.68,135.15,135.14,0.5]
[1765168450742,17.95997208,135.15,135.1,7.40183001]
[1765168450968,17.95997208,135.15,135.09,10.580786]
[1765168450969,9.880786,135.14,135.09,8.10211332]
[1765168451147,10.560786,135.14,135.09,8.10211332]
[1765168451346,10.560786,135.14,135.08,18.080786]
[1765168451347,9.880786,135.12,135.08,31.91184538]
[1765168451575,9.880786,135.12,135.07,0.7]
[1765168451752,0.68,135.11,135.07,8.1035336]
[1765168452477,9.880786,135.12,135.08,8.102747]
[1765168452646,18.780786,135.13,135.08,8.102747]
[1765168452846,17.96197728,135.12,135.08,0.7]
[1765168453062,17.96197728,135.12,135.07,7.40345103]
[1765168453273,17.96197728,135.12,135.07,8.10345103]
[1765168453274,0.68,135.11,135.07,8.10345103]
[1765168454355,17.96234986,135.11,135.07,8.10345103]
[1765168455479,0.68,135.1,135.07,7.40345103]
[1765168455983,9.880786,135.08,135.04,0.7]
[1765168456191,0.68,135.14,135.07,26.18965]
[1765168456481,7.39881243,135.16,135.11,9.880786]
[1765168456665,7.39881243,135.16,135.13,9.880786]
[1765168456970,8.07881243,135.16,135.13,9.880786]
[1765168457284,8.07881243,135.16,135.12,0.7]
[1765168457285,0.68,135.15,135.1,9.880786]
[1765168457777,7.3997336,135.14,135.1,9.880786]
[1765168458172,0.68,135.13,135.1,9.880786]
[1765168458674,7.3997336,135.14,135.11,9.880786]
[1765168458855,8.0797336,135.14,135.11,9.880786]
[1765168459054,8.0797336,135.14,135.1,17.28237233]
[1765168459256,8.0797336,135.14,135.1,17.98237233]
[1765168459456,0.68,135.13,135.09,8.22]
[1765168459652,0.68,135.13,135.09,18.100786]
[1765168459851,7.40082889,135.12,135.09,9.880786]
[1765168460081,7.40082889,135.12,135.08,8.22]
[1765168460273,0.68,135.11,135.08,8.22]
[1765168460655,9.880786,135.09,135.04,25.50595104]
[1765168460858,0.68,135.09,135.05,10.560786]
[1765168461065,44.68368712,135.12,135.06,9.880786]
[1765168461312,0.68,135.11,135.06,9.880786]
[1765168461451,10.560786,135.11,135.05,17.96530755]
[1765168461656,9.880786,135.1,135.05,8.08452155]
[1765168461873,8.08209125,135.1,135.05,17.96530755]
[1765168462075,8.08209125,135.1,135.06,0.68]
[1765168462881,0.68,135.09,135.06,0.68]
[1765168463183,0.68,135.09,135.05,7.40452155]
[1765168463379,17.96335477,135.09,135.04,8.22]
[1765168463589,9.880786,135.08,135.04,8.22]
[1765168463780,10.560786,135.08,135.04,8.22]
[1765168464078,0.68,135.07,135.04,8.22]
[1765168464474,10.560786,135.07,135.04,8.22]
[1765168464681,0.68,135.07,135.04,8.22]
[1765168464879,9.880786,135.08,135.04,8.9]
[1765168465074,7.40356852,135.07,135.04,8.9]
[1765168465373,7.40305671,135.08,135.04,8.9]
[1765168465582,8.22,135.09,135.05,0.68]
[1765168465771,8.9,135.09,135.05,0.68]
[1765168466688,16.30263386,135.09,135.05,0.68]
[1765168467582,8.22,135.09,135.05,8.08465589]
[1765168467783,8.22,135.09,135.05,17.96544189]
[1765168467977,10.560786,135.11,135.06,0.68]
[1765168468183,17.28272668,135.1,135.06,0.68]
[1765168468480,17.96272668,135.1,135.05,8.08465589]
[1765168468689,8.08155509,135.11,135.06,0.68]
[1765168468867,17.96234109,135.11,135.06,0.68]
[1765168469065,0.68,135.1,135.06,0.68]
[1765168469294,15.62094782,135.12,135.07,18.100786]
[1765168469601,8.22,135.12,135.07,18.100786]
[1765168469797,8.22,135.12,135.08,10.560786]
[1765168469970,8.22,135.12,135.08,0.68]
[1765168470285,8.0803107,135.13,135.08,0.68]
[1765168470492,7.4003107,135.13,135.08,0.68]
[1765168470696,0.68,135.12,135.08,10.560786]
[1765168471071,0.68,135.12,135.08,0.68]
[1765168471795,0.68,135.12,135.08,8.08301771]
[1765168473196,9.880786,135.1,135.05,0.68]
[1765168473374,9.880786,135.1,135.05,8.08428832]
[1765168473566,10.560786,135.1,135.06,16.308864]
[1765168473770,17.96296155,135.1,135.06,16.988864]
[1765168474474,0.68,135.09,135.05,7.40428832]
[1765168474783,17.96296155,135.1,135.06,1.18]
[1765168475368,7.40138155,135.11,135.07,0.68]
[1765168475663,37.28285823,135.12,135.08,7.40302043]
[1765168475664,7.40094106,135.12,135.08,7.40302043]
[1765168475865,16.30046786,135.13,135.08,7.40302043]
[1765168476086,16.30046786,135.13,135.09,0.68]
[1765168476295,15.62046786,135.13,135.09,0.68]
[1765168476487,0.68,135.12,135.09,0.68]
[1765168477074,9.880786,135.11,135.07,24.528864]
[1765168477380,9.880786,135.11,135.07,16.308864]
[1765168477691,9.880786,135.11,135.06,8.08393348]
[1765168477692,0.68,135.1,135.06,8.08393348]
[1765168477991,17.96292964,135.1,135.06,16.308864]
[1765168478211,10.560786,135.12,135.07,0.68]
[1765168478395,8.0809904,135.12,135.07,17.96417359]
[1765168478781,8.0809904,135.12,135.08,0.68]
[1765168479804,8.0809904,135.12,135.08,8.08294285]
[1765168480102,7.4009904,135.12,135.08,8.08294285]
[1765168480500,8.0809904,135.12,135.08,8.08294285]
[1765168481089,17.9617764,135.12,135.08,8.08294285]
[1765168481315,10.560786,135.11,135.07,8.22]
[1765168481608,10.560786,135.11,135.08,0.5]
[1765168482493,7.4009904,135.12,135.08,1.18]
[1765168482494,17.2817764,135.12,135.08,1.18]
[1765168482703,14.39609363,135.12,135.08,1.18]
[1765168483010,13.71609363,135.12,135.08,1.18]
[1765168483207,8.08150285,135.11,135.08,0.5]
[1765168484191,14.39660608,135.11,135.07,0.68]
[1765168485406,14.39660608,135.11,135.07,8.08332328]
[1765168485604,0.68,135.11,135.07,8.08332328]
[1765168485808,0.68,135.11,135.08,0.68]
[1765168486011,7.40100399,135.12,135.08,0.68]
[1765168486305,8.08100399,135.12,135.08,0.68]
[1765168486882,13.71610722,135.12,135.08,0.68]
[1765168487086,6.99510323,135.11,135.07,7.40332328]
[1765168487387,0.68,135.11,135.07,8.08332328]
[1765168487586,13.71610722,135.12,135.08,0.68]
[1765168487897,14.39610722,135.12,135.08,0.68]
[1765168488101,6.31510323,135.09,135.05,16.308864]
[1765168488289,8.9,135.11,135.03,0.2]
[1765168488290,6.31510323,135.06,135.03,0.2]
[1765168488807,6.99510323,135.06,135.03,0.2]
[1765168489014,6.99510323,135.05,135.03,0.2]
[1765168489194,6.31510323,135.04,135.03,0.2]
[1765168489824,14.4003165,135.04,135.03,0.2]
[1765168490906,29.52536465,135.04,135.03,0.2]
[1765168491228,23.21026142,135.04,135.03,0.2]
[1765168492628,14.4003165,135.04,135.03,0.2]
[1765168495405,6.99510323,135.04,135.03,0.2]
[1765168495605,14.4003165,135.04,135.03,0.2]
[1765168499027,22.6203165,135.04,135.03,0.2]
[1765168500426,14.4003165,135.04,135.03,0.2]
[1765168500719,22.6203165,135.04,135.03,0.2]
[1765168500923,21.9403165,135.04,135.03,0.2]
[1765168501226,7.4041697,135.06,135.03,0.92]
[1765168501607,7.40366756,135.07,135.04,0.72]
[1765168501924,6.31510323,135.07,135.03,0.2]
[1765168502116,25.9090253,135.09,135.03,0.92]
[1765168502321,15.62284424,135.09,135.04,6.31510323]
[1765168502527,15.62284424,135.09,135.04,7.03510323]
[1765168502825,7.40284424,135.09,135.05,0.72]
[1765168503126,13.71794747,135.09,135.05,0.72]
[1765168503817,0.66,135.08,135.03,14.64076539]
[1765168504324,7.40284424,135.09,135.05,13.71964076]
[1765168504732,7.40284424,135.09,135.06,0.72]
[1765168505530,7.40082889,135.12,135.07,6.31510323]
[1765168505704,15.62082889,135.12,135.07,6.31510323]
[1765168506026,22.59593212,135.12,135.08,0.72]
[1765168508534,16.28082889,135.12,135.08,0.72]
[1765168508707,7.40082889,135.12,135.08,7.03510323]
[1765168508908,112.20082889,135.12,135.08,7.03510323]
[1765168509206,8.05910155,135.16,135.11,22.62396723]
[1765168509405,7.39821471,135.17,135.13,6.31510323]
[1765168509608,105.46,135.2,135.16,6.31510323]
[1765168509834,6.97510323,135.2,135.15,6.31510323]
[1765168510328,6.97510323,135.2,135.12,8.22]
[1765168510329,0.66,135.2,135.16,7.03510323]
[1765168510534,0.66,135.22,135.18,6.31510323]
[1765168511114,15.61485279,135.23,135.19,0.72]
[1765168511308,16.27485279,135.23,135.18,6.31510323]
[1765168511510,16.27485279,135.23,135.19,0.72]
[1765168511722,0.66,135.22,135.19,6.31510323]
[1765168511933,0.66,135.22,135.18,7.03510323]
[1765168512473,8.80994492,135.21,135.13,8.11976179]
[1765168512613,6.31510323,135.18,135.13,23.34396723]
[1765168513035,6.97510323,135.18,135.14,0.72]
[1765168513335,14.37317704,135.18,135.14,0.72]
[1765168513642,26.7119485,135.2,135.14,0.72]
[1765168513643,7.39710607,135.19,135.15,6.31510323]
[1765168513815,7.39710607,135.19,135.16,6.31510323]
[1765168514005,0.66,135.21,135.18,6.31510323]
[1765168514230,7.39574756,135.22,135.18,6.31510323]
[1765168514428,13.71085079,135.22,135.17,7.03510323]
[1765168514717,6.31510323,135.21,135.17,0.72]
[1765168514929,6.97510323,135.21,135.17,0.72]
[1765168515611,7.3964497,135.2,135.17,0.72]
[1765168515810,8.0564497,135.2,135.17,0.72]
[1765168516035,7.3964497,135.2,135.17,0.72]
[1765168516247,8.0564497,135.2,135.16,16.308864]
[1765168516744,8.0564497,135.2,135.17,0.72]
[1765168517838,6.31510323,135.23,135.17,0.72]
[1765168518039,7.39480884,135.23,135.17,14.4331818]
[1765168518545,6.31510323,135.2,135.15,17.028864]
[1765168518730,6.31510323,135.2,135.15,8.94]
[1765168518936,6.97510323,135.19,135.15,8.94]
[1765168519532,13.71220792,135.19,135.16,0.72]
[1765168519722,8.05710469,135.19,135.15,8.22]
[1765168519928,8.05710469,135.19,135.15,8.94]
[1765168520231,6.97510323,135.18,135.13,17.028864]
[1765168520436,6.31510323,135.17,135.13,25.248864]
[1765168520637,6.97510323,135.17,135.13,8.94]
[1765168521046,6.97510323,135.17,135.14,0.66]
[1765168521250,6.31510323,135.17,135.11,16.308864]
[1765168521449,7.00510323,135.16,135.11,8.88]
[1765168521641,7.39918608,135.15,135.12,0.66]
[1765168521831,6.31510323,135.17,135.12,0.66]
[1765168522031,7.00510323,135.18,135.12,0.66]
[1765168522640,7.39754401,135.18,135.12,6.97510323]
[1765168522843,7.39754401,135.18,135.13,6.31510323]
[1765168523155,7.39754401,135.18,135.13,0.66]
[1765168523359,6.31510323,135.14,135.09,8.06230371]
[1765168523671,13.71506528,135.14,135.09,32.59116771]
[1765168523830,14.40506528,135.14,135.1,0.66]
[1765168526752,7.40057619,135.13,135.1,0.66]
[1765168526952,7.00510323,135.16,135.1,0.66]
[1765168527343,13.71374188,135.16,135.1,8.06187215]
[1765168527545,14.40374188,135.16,135.1,8.06187215]
[1765168527734,6.31510323,135.14,135.1,8.22]
[1765168527938,7.00510323,135.15,135.11,0.5]
[1765168528131,7.00510323,135.15,135.11,1.16]
[1765168528330,7.00510323,135.15,135.12,0.66]
[1765168528534,32.2103385,135.16,135.12,0.66]
[1765168528833,32.9003385,135.16,135.12,0.66]
[1765168529556,6.31510323,135.15,135.12,0.66]
[1765168529758,6.31510323,135.13,135.08,25.188864]
[1765168530055,7.00510323,135.14,135.09,0.66]
[1765168530460,0.69,135.13,135.09,0.66]
[1765168530660,6.31510323,135.15,135.09,6.97510323]
[1765168530839,7.39940868,135.15,135.11,6.31510323]
[1765168531362,7.39940868,135.15,135.12,0.66]
[1765168531863,104.8,135.17,135.12,15.19510323]
[1765168532156,13.71273541,135.18,135.12,15.19510323]
[1765168532362,13.71273541,135.18,135.13,0.66]
[1765168532363,7.39763218,135.18,135.13,0.66]
[1765168532541,14.40273541,135.18,135.13,0.66]
[1765168532863,0.69,135.17,135.13,16.27994677]
[1765168533272,0.69,135.17,135.14,0.66]
[1765168533767,7.39763218,135.18,135.14,0.66]
[1765168533934,8.08763218,135.18,135.14,0.66]
[1765168534141,8.08763218,135.18,135.14,8.05962036]
[1765168534341,0.69,135.17,135.14,0.66]
[1765168534860,7.39763218,135.18,135.14,0.66]
[1765168535040,8.08763218,135.18,135.14,0.66]
[1765168535243,8.08709849,135.19,135.14,14.37451457]
[1765168535438,13.71220172,135.19,135.14,8.05941134]
[1765168535658,0.69,135.18,135.14,0.66]
[1765168535856,8.08777916,135.18,135.15,0.66]
[1765168536072,112.19718758,135.19,135.15,0.66]
[1765168536364,112.19718758,135.19,135.15,8.05892045]
[1765168536552,104.8,135.19,135.15,14.37402368]
[1765168536752,104.8,135.19,135.16,8.88]
[1765168537261,104.8,135.19,135.17,0.66]
[1765168537957,104.8,135.19,135.16,8.22]
[1765168538157,104.8,135.19,135.16,8.88]
[1765168538665,104.8,135.19,135.16,16.2785498]
[1765168539041,7.39371534,135.25,135.18,22.62396723]
[1765168539254,14.39881857,135.25,135.19,6.31510323]
[1765168539471,14.39881857,135.25,135.19,8.88]
[1765168540067,7.00510323,135.24,135.19,16.27692901]
[1765168540265,0.69,135.24,135.19,16.27692901]
[1765168540467,0.69,135.24,135.2,0.66]
[1765168541365,8.08479574,135.24,135.2,0.66]
[1765168542159,14.39989897,135.24,135.2,0.66]
[1765168542759,17.96248799,135.24,135.2,0.66]
[1765168546273,8.08495949,135.23,135.18,24.36630684]
[1765168546568,8.08495949,135.23,135.19,0.66]
[1765168546767,0.69,135.22,135.19,0.66]
[1765168547074,8.08495949,135.23,135.19,0.66]
[1765168547768,7.39495949,135.23,135.19,0.66]
[1765168547974,9.87769225,135.21,135.16,8.05824367]
[1765168548148,115.36769225,135.24,135.17,9.87769225]
[1765168548470,123.56769225,135.24,135.18,8.2]
[1765168548673,123.56769225,135.24,135.18,8.86]
[1765168548859,123.56769225,135.24,135.19,0.66]
[1765168549363,130.96209194,135.24,135.19,8.0569719]
[1765168549762,10.56769225,135.23,135.19,0.66]
[1765168550875,10.56769225,135.22,135.18,0.68]
[1765168551255,0.69,135.22,135.18,0.68]
[1765168551677,9.87769225,135.2,135.15,23.70800758]
[1765168551854,9.87769225,135.2,135.15,32.58800758]
[1765168552054,10.57769225,135.2,135.16,0.68]
[1765168552260,0.7,135.19,135.16,0.68]
[1765168552465,10.57769225,135.2,135.16,0.68]
[1765168553160,0.7,135.2,135.16,0.68]
[1765168553671,17.27570914,135.18,135.13,0.68]
[1765168553874,17.27570914,135.18,135.13,8.08027926]
[1765168554074,0.7,135.17,135.13,8.08027926]
[1765168554377,0.7,135.17,135.12,16.308864]
[1765168554378,10.57769225,135.17,135.12,16.308864]
[1765168554683,9.87769225,135.15,135.1,0.68]
[1765168554990,9.87769225,135.15,135.11,0.68]
[1765168555154,9.87769225,135.16,135.11,0.68]
[1765168555361,0.7,135.15,135.11,0.68]
[1765168555686,10.57769225,135.15,135.11,0.68]
[1765168555883,17.97734295,135.15,135.11,0.68]
[1765168556581,8.0996507,135.15,135.11,0.68]
[1765168557683,18.07769225,135.18,135.11,17.95892139]
[1765168557884,0.69,135.17,135.11,17.95892139]
[1765168558054,8.89,135.19,135.13,9.87769225]
[1765168558475,8.89,135.19,135.14,0.67]
[1765168559075,8.08756672,135.18,135.14,0.67]
[1765168559263,8.08756672,135.18,135.14,8.06963288]
[1765168559583,8.08756672,135.18,135.15,0.67]
[1765168560499,8.08756672,135.18,135.13,15.60014924]
[1765168560663,8.08756672,135.18,135.14,0.67]
[1765168560865,8.08756672,135.18,135.14,8.06960004]
[1765168561888,8.08756672,135.18,135.15,0.67]
[1765168564169,0.69,135.17,135.14,7.39960004]
[1765168564368,0.69,135.17,135.14,8.06960004]
[1765168564682,8.08756672,135.18,135.14,0.67]
[1765168564874,8.08756672,135.18,135.13,18.07769225]
[1765168565075,8.08756672,135.18,135.15,0.67]
[1765168566294,0.69,135.18,135.15,0.67]
[1765168567190,8.08768989,135.18,135.15,0.67]
[1765168569192,0.69,135.17,135.13,8.2]
[1765168569369,4.82961692,135.17,135.13,0.67]
[1765168569572,4.82961692,135.17,135.12,25.178864]
[1765168569768,0.69,135.16,135.12,24.508864]
[1765168570089,4.13961692,135.15,135.1,16.308864]
[1765168570384,4.13961692,135.13,135.1,0.67]
[1765168570577,4.82961692,135.15,135.11,0.67]
[1765168571400,12.22899098,135.15,135.11,0.67]
[1765168572203,11.53899098,135.15,135.11,0.67]
[1765168572382,0.69,135.14,135.1,0.67]
[1765168572689,0.69,135.14,135.11,0.67]
[1765168573184,11.53899098,135.15,135.11,0.67]
[1765168573695,4.82961692,135.14,135.09,8.2]
[1765168573890,4.82961692,135.14,135.09,8.87]
[1765168574093,0.69,135.13,135.1,0.67]
[1765168574301,4.82961692,135.13,135.09,8.87]
[1765168574773,0.69,135.12,135.09,8.87]
[1765168574972,0.69,135.12,135.04,37.02498921]
[1765168574973,4.13961692,135.1,135.05,0.67]
[1765168575170,4.13961692,135.09,135.05,0.67]
[1765168575375,4.82961692,135.11,135.06,7.40411668]
[1765168575586,4.82961692,135.11,135.05,0.67]
[1765168575587,4.13961692,135.09,135.05,0.67]
[1765168575890,4.82961692,135.1,135.05,0.67]
[1765168576392,0.69,135.09,135.05,0.67]
[1765168576600,0.69,135.09,135.05,8.07428829]
[1765168576971,0.69,135.09,135.05,7.40428829]
[1765168577171,0.69,135.09,135.05,0.67]
[1765168577700,8.0925162,135.09,135.05,0.67]